bitfinex/quotes_ETHUSD_20220215
["timestamp","ask_amount","ask_price","bid_price","bid_amount"]
[1644929121574,2.50358107,3103.6,3103.3,2.27035]
[1644929122174,3.30895107,3103.6,3103.3,2.27035]
[1644929123385,0.80541,3103.5,3103.3,2.27035]
[1644929123775,1.6108,3103.5,3103.3,2.27035]
[1644929124722,2.50358107,3103.6,3103.3,2.27035]
[1644929125330,0.00358107,3103.6,3103.3,2.27035]
[1644929125530,1.6108,3103.8,3103.3,2.27035]
[1644929125724,0.00358107,3103.7,3103.3,2.27035]
[1644929125927,2.5,3103.6,3103.3,2.27035]
[1644929126124,1.61436107,3103.5,3103.3,2.27035]
[1644929127126,0.80896107,3103.5,3103.3,2.27035]
[1644929128326,1.61435107,3103.5,3103.3,2.27035]
[1644929128777,1.61435107,3103.5,3103.3,5.41634236]
[1644929128979,0.80896107,3103.5,3103.4,3.09596032]
[1644929129177,1.10896107,3103.5,3103.3,1.80535]
[1644929129381,0.3,3103.4,3103.3,0.80535]
[1644929129591,0.3,3103.4,3103.3,1.80535]
[1644929130482,0.3,3103.4,3103.3,0.80535]
[1644929130685,0.3,3103.4,3103.3,1.80535]
[1644929131279,0.3,3103.4,3103.3,4.8913256]
[1644929131489,0.3,3103.4,3103.3,1.80535]
[1644929131880,1.61435107,3103.5,3103.3,4.83281605]
[1644929132924,1.61435107,3103.5,3103.3,1.80535]
[1644929133732,0.3,3103.4,3103.3,1.80535]
[1644929134021,0.3,3103.4,3103.3,4.96498768]
[1644929134222,0.80529,3103.9,3103.3,5.42998768]
[1644929134423,0.00358107,3103.8,3103.3,5.42998768]
[1644929134623,1.37404267,3104.1,3103.3,5.42998768]
[1644929134824,1.67404267,3104.1,3103.3,5.42998768]
[1644929135025,0.30358107,3104.1,3103.3,5.42998768]
[1644929135324,0.80531,3103.8,3103.3,5.42998768]
[1644929135536,0.80538,3103.6,3103.3,5.42998768]
[1644929135972,0.30358107,3103.5,3103.3,2.27035]
[1644929136581,1.61441107,3103.5,3103.3,2.27035]
[1644929137887,0.3,3103.4,3103.3,2.27035]
[1644929140125,0.3,3103.4,3103.3,1.27035]
[1644929141539,0.24915567,3103.4,3103.3,2.27035]
[1644929141728,0.21260876,3103.4,3103.3,1.27035]
[1644929141932,0.21260876,3103.4,3103.3,2.27035]
[1644929150630,1.61077,3103.8,3103.3,2.27035]
[1644929150631,0.01149857,3104.3,3104.2,1.22533693]
[1644929151101,1.38194138,3104.3,3104.2,1.22533693]
[1644929151299,1.38194138,3104.3,3103.9,0.8054212]
[1644929151300,1.37044281,3104.3,3103.9,0.8054212]
[1644929151515,1.37044281,3104.2,3103.9,0.8054212]
[1644929151706,1.37044281,3104.1,3103.9,0.8054212]
[1644929152113,1.0815391,3104.2,3103.9,0.8054212]
[1644929152299,1.37046802,3104.1,3103.9,0.8054212]
[1644929153899,1.37046802,3104.1,3103.9,1.6108012]
[1644929154115,1.37046802,3104.1,3103.9,0.8054212]
[1644929154300,2.17582802,3104.4,3103.9,0.8054212]
[1644929154501,1.37046802,3104.3,3103.9,0.8054212]
[1644929155727,1.00688131,3104.2,3103.9,0.8054212]
[1644929155929,1.37046802,3104.1,3103.9,1.6107912]
[1644929156129,1.37046802,3104.1,3103.9,0.8054212]
[1644929157033,1.37046802,3104.1,3103.9,1.6107912]
[1644929158779,1.37046802,3104.0,3103.9,1.6107912]
[1644929158980,1.37046802,3104.4,3103.9,1.6107912]
[1644929159181,1.37046802,3104.3,3103.9,1.6107912]
[1644929160191,1.37046802,3104.3,3103.9,0.8054212]
[1644929160846,1.37046802,3104.2,3103.9,0.8054212]
[1644929160982,1.37046802,3104.1,3103.9,0.8054212]
[1644929161179,2.5,3104.5,3104.0,0.80532]
[1644929161379,2.5,3104.5,3104.0,1.61064]
[1644929161380,1.37028884,3104.4,3104.0,1.61064]
[1644929161685,1.37028884,3104.4,3104.0,2.71576]
[1644929161886,1.37028884,3104.4,3104.0,4.18076]
[1644929162079,1.37028884,3104.4,3104.1,0.8051036]
[1644929162336,1.37028884,3104.4,3104.2,0.80512]
[1644929162544,1.37028884,3104.4,3104.2,1.10512]
[1644929162741,2.5,3104.5,3104.3,0.465]
[1644929163141,2.16166853,3104.5,3104.3,0.765]
[1644929163338,1.40427272,3104.5,3104.3,22.0601053]
[1644929163538,0.1437044,3104.5,3104.4,6.9]
[1644929163740,0.01149961,3105.0,3104.6,0.80483]
[1644929163944,0.01149961,3105.0,3104.7,2.07463]
[1644929164154,0.01149961,3105.0,3104.8,18.88]
[1644929164338,0.01149961,3105.0,3104.9,19.345]
[1644929164548,3.5,3106.0,3104.9,20.645]
[1644929164738,1.36974779,3105.9,3105.1,0.80477]
[1644929164939,0.01149961,3105.5,3105.2,19.345]
[1644929165339,0.01149961,3105.5,3105.3,1.0]
[1644929165541,0.01149961,3105.5,3105.4,22.83654813]
[1644929165737,0.61219616,3106.6,3105.4,19.73319998]
[1644929165982,0.01149961,3106.0,3105.6,0.80464]
[1644929166178,0.01149961,3106.0,3105.7,1.065]
[1644929166681,0.01149961,3106.0,3105.9,0.80466]
[1644929166879,0.01149961,3106.0,3105.9,1.10466]
[1644929167108,0.00356317,3106.7,3106.1,0.8046732]
[1644929167282,0.00287502,3106.3,3106.1,0.8046732]
[1644929167497,0.00287502,3106.3,3106.1,1.1046732]
[1644929167688,0.00287502,3106.3,3106.2,23.85538997]
[1644929167689,0.00643819,3106.3,3106.2,23.85538997]
[1644929167899,0.00287502,3106.3,3106.2,24.15538997]
[1644929168282,0.00356317,3107.2,3106.5,0.8045]
[1644929168540,0.00356317,3107.2,3106.6,3.79244104]
[1644929168884,0.00356317,3107.2,3106.7,1.8044584]
[1644929169181,0.00356317,3107.2,3106.8,5.8231107]
[1644929169485,0.00356317,3107.2,3106.9,1.80442]
[1644929170134,0.00356317,3107.2,3106.9,3.4132356]
[1644929170532,0.00356317,3107.2,3107.0,0.3]
[1644929170742,0.22664683,3107.3,3106.9,2.00877561]
[1644929170935,0.00086436,3107.2,3106.9,2.81318561]
[1644929171794,0.22664683,3107.3,3107.1,0.80446]
[1644929172139,0.00286815,3107.2,3107.1,0.80446]
[1644929172732,0.00286815,3107.2,3107.1,1.10446]
[1644929173147,0.22664683,3107.3,3107.1,1.10446]
[1644929174681,0.22664683,3107.3,3107.1,0.80446]
[1644929174890,0.22664683,3107.3,3107.1,4.75582661]
[1644929175145,0.22664683,3107.3,3107.2,4.2385811]
[1644929175283,0.22308366,3107.3,3107.2,5.2385811]
[1644929175686,0.22308366,3107.3,3107.2,5.29164393]
[1644929176222,0.22308366,3107.3,3107.2,1.765]
[1644929180148,0.22308366,3107.3,3107.2,0.465]
[1644929181787,0.22308366,3107.3,3107.2,0.765]
[1644929183781,0.22308366,3107.3,3107.2,5.52065316]
[1644929184081,0.22308366,3107.3,3107.2,1.765]
[1644929189778,0.22308366,3107.3,3107.2,1.465]
[1644929190981,0.22308366,3107.3,3107.2,1.765]
[1644929191580,0.22199129,3107.3,3107.2,1.765]
[1644929191780,0.22199129,3107.3,3107.2,1.465]
[1644929192428,0.22199129,3107.3,3107.2,0.465]
[1644929192648,0.22199129,3107.3,3107.2,1.465]
[1644929192827,0.22199129,3107.3,3107.2,1.765]
[1644929202961,0.1627138,3107.3,3107.2,1.765]
[1644929203160,0.00356317,3108.3,3107.4,1.60848]
[1644929203358,0.00924403,3107.9,3107.5,1.56913]
[1644929203787,0.00924403,3107.9,3107.5,2.56913]
[1644929203986,0.00924403,3107.9,3107.5,3.8088689]
[1644929204191,0.00356317,3108.6,3107.6,0.3]
[1644929204388,1.37222071,3108.6,3107.8,0.80407]
[1644929204582,0.00911897,3108.3,3107.9,4.68769161]
[1644929204783,0.00911897,3108.3,3108.1,0.3]
[1644929204983,0.00911897,3108.3,3107.9,6.29578161]
[1644929205181,0.00911897,3108.3,3108.0,0.8041385]
[1644929205382,0.00356317,3108.6,3108.0,1.2691385]
[1644929205582,2.5,3108.1,3108.0,2.0732685]
[1644929206992,2.5,3108.1,3108.0,1.26913]
[1644929207243,2.5,3108.1,3108.0,0.80413]
[1644929208337,3.86874758,3108.1,3108.0,0.80413]
[1644929209144,3.86874758,3108.1,3108.0,1.10413]
[1644929209145,2.5,3108.1,3108.0,1.10413]
[1644929209333,2.5,3108.1,3108.0,2.10413]
[1644929210336,2.5,3108.1,3108.0,0.80413]
[1644929210552,2.5,3108.1,3107.9,0.80426]
[1644929210738,2.50356317,3108.1,3107.9,0.80426]
[1644929210985,1.36875089,3108.0,3107.9,0.80426]
[1644929211380,0.00356317,3108.1,3107.9,0.80426]
[1644929211583,0.00356317,3108.6,3108.1,0.80411]
[1644929211791,0.00914049,3108.6,3108.2,0.80412]
[1644929211998,1.36869607,3108.5,3108.1,0.1482559]
[1644929212182,0.00356317,3108.4,3108.1,0.1482559]
[1644929212787,0.00356317,3108.4,3108.2,0.80412]
[1644929212991,0.00356317,3108.4,3108.2,2.41225]
[1644929212992,1.37454471,3108.4,3108.2,2.41225]
[1644929213200,1.36869607,3108.3,3108.2,1.60815]
[1644929213428,0.00584864,3108.4,3108.2,1.60815]
[1644929213583,1.36869607,3108.3,3108.2,1.60815]
[1644929213785,0.00356317,3108.6,3108.2,1.60815]
[1644929213982,0.61219616,3108.9,3108.3,1.60826]
[1644929213983,0.00356317,3108.8,3108.3,1.60826]
[1644929214183,0.00228547,3108.5,3108.3,1.60826]
[1644929215036,0.00356317,3108.5,3108.4,0.80411]
[1644929215264,0.00584897,3108.6,3108.4,1.60817]
[1644929215435,1.36869607,3108.5,3108.4,0.80411]
[1644929215652,1.37225924,3108.5,3108.4,0.80411]
[1644929217348,0.00356317,3108.5,3108.4,0.80411]
[1644929217540,1.36869607,3108.8,3108.4,1.60824]
[1644929217541,1.37225924,3108.8,3108.4,1.60824]
[1644929217939,1.37225924,3108.8,3108.5,0.80412]
[1644929218137,4.83460101,3108.8,3108.1,1.60832]
[1644929218336,1.36869607,3108.7,3107.9,2.60835]
[1644929218593,0.00356317,3108.6,3107.7,0.13819997]
[1644929218798,2.5,3108.1,3107.8,1.60832]
[1644929218993,0.00356317,3108.0,3107.9,0.80418]
[1644929219194,0.00356317,3108.1,3107.9,0.80418]
[1644929219392,1.37227708,3108.5,3107.9,0.80418]
[1644929219598,1.36871391,3108.5,3107.9,0.80418]
[1644929219788,1.37227708,3108.4,3107.9,0.80418]
[1644929219991,1.36871391,3108.3,3107.9,1.60839]
[1644929220191,1.36871391,3108.2,3107.9,0.80418]
[1644929220390,1.36871391,3108.1,3107.9,0.80418]
[1644929220590,1.36871391,3108.0,3107.9,0.80418]
[1644929220800,0.00356317,3108.1,3107.9,0.80418]
[1644929221004,1.36871391,3108.3,3107.9,1.60838]
[1644929221194,0.00356317,3108.2,3108.0,0.80418]
[1644929221392,0.00276834,3108.1,3108.0,0.80418]
[1644929221793,1.36871391,3108.5,3108.0,0.80418]
[1644929221993,1.35583226,3108.4,3108.0,0.80418]
[1644929222263,3.36053079,3108.6,3108.1,0.80421]
[1644929222439,3.43828715,3108.8,3108.2,0.80421]
[1644929222840,3.37638803,3108.8,3108.2,0.80421]
[1644929223753,1.09471726,3108.7,3108.2,1.60842]
[1644929223942,3.31742333,3108.6,3108.1,3.21668]
[1644929224241,1.09471726,3108.7,3108.1,3.21668]
[1644929224441,0.00276142,3108.7,3108.1,3.21565351]
[1644929224651,8.04219616,3109.0,3108.1,3.21565351]
[1644929224855,7.43,3109.0,3108.1,3.21565351]
[1644929225044,0.00276142,3108.6,3108.1,3.21565351]
[1644929225249,0.00276142,3108.6,3108.2,1.6082696]
[1644929225442,0.00276142,3108.6,3108.2,2.4124]
[1644929225843,10.78321705,3109.0,3108.3,0.80412]
[1644929226093,0.00276142,3108.6,3108.3,0.80412]
[1644929226488,0.00276142,3108.6,3108.5,0.80411]
[1644929227088,7.43,3109.0,3108.5,1.60818]
[1644929227295,0.00276142,3108.7,3108.5,0.80407]
[1644929227889,0.00276142,3108.7,3108.6,0.80409]
[1644929228288,10.77781416,3109.0,3108.5,0.80407]
[1644929228488,0.00276142,3108.8,3108.5,0.80407]
[1644929228887,0.00276142,3108.8,3108.5,1.60815]
[1644929229089,0.00276142,3108.8,3108.6,0.80412]
[1644929229392,7.43,3109.0,3108.6,0.8041]
[1644929229835,0.00276142,3108.9,3108.6,0.8041]
[1644929230041,0.00276142,3108.9,3108.3,0.80411]
[1644929230243,0.00276142,3108.9,3108.7,0.80406]
[1644929230645,0.0085426,3109.2,3108.7,0.80406]
[1644929230844,0.00083225,3109.0,3108.7,0.80406]
[1644929231450,0.00083225,3109.0,3108.7,1.60811]
[1644929231638,0.00083225,3109.0,3108.8,0.80404]
[1644929231847,0.0085426,3109.2,3108.8,0.80404]
[1644929232037,0.0085426,3109.2,3108.7,0.80405]
[1644929232038,0.00083225,3109.0,3108.7,0.1483096]
[1644929232438,1.60920675,3109.0,3108.1,1.60835]
[1644929232644,1.04691198,3108.5,3108.0,0.80427]
[1644929232840,3.80491056,3108.4,3108.0,0.80427]
[1644929233052,4.88686411,3108.8,3108.0,0.80427]
[1644929233237,2.5,3108.1,3108.0,0.80427]
[1644929237343,2.48390712,3108.1,3108.0,0.80427]
[1644929243488,2.48390712,3108.1,3108.0,1.80427]
[1644929243689,2.48390712,3108.1,3108.0,2.10427]
[1644929244092,0.00276138,3108.3,3108.2,0.80406]
[1644929244345,0.00276138,3108.3,3108.2,2.10406]
[1644929244494,0.00276138,3108.3,3108.2,1.80406]
[1644929244735,0.00276138,3108.3,3108.2,0.80406]
[1644929245137,0.00354535,3108.4,3108.2,2.41225]
[1644929245335,0.00276142,3108.4,3108.2,2.41225]
[1644929245535,0.00276142,3108.4,3108.3,0.80408]
[1644929246334,5.23096806,3109.2,3108.3,0.80408]
[1644929246335,1.37209802,3108.5,3108.3,1.60821]
[1644929246534,0.01104403,3109.0,3108.5,0.80409]
[1644929246735,1.36853276,3108.9,3108.7,0.80409]
[1644929246949,1.37207811,3108.9,3108.7,0.80409]
[1644929247837,1.36853276,3108.8,3108.7,0.80409]
[1644929248236,1.36853276,3108.8,3108.6,0.80413]
[1644929248499,1.36853276,3108.7,3108.2,3.21654]
[1644929248738,1.37207811,3108.6,3108.2,3.21654]
[1644929248892,1.37207811,3108.5,3108.2,3.21654]
[1644929249099,1.36853276,3108.4,3108.2,3.21654]
[1644929249291,0.00354535,3108.5,3108.2,3.21654]
[1644929249491,1.36854339,3108.8,3108.3,0.80414]
[1644929249691,1.37208874,3108.7,3108.3,0.80414]
[1644929249890,1.37208874,3108.6,3108.4,0.80416]
[1644929250095,0.00354535,3108.6,3108.4,0.80416]
[1644929250291,1.36854339,3108.6,3108.4,0.80416]
[1644929250493,1.36854339,3108.5,3108.4,0.80416]
[1644929250792,1.36854339,3108.5,3108.4,0.80414]
[1644929251095,1.37208874,3108.6,3108.4,0.80414]
[1644929251302,1.36854339,3108.5,3108.4,0.80414]
[1644929251892,1.36854339,3108.5,3108.3,0.80421]
[1644929252102,0.00354535,3108.4,3108.3,0.80421]
[1644929252540,1.37208874,3108.4,3108.3,0.80421]
[1644929252736,1.36854339,3108.5,3108.3,0.80421]
[1644929252937,1.36854339,3108.4,3108.3,0.80421]
[1644929253141,1.36854339,3108.5,3108.3,0.80421]
[1644929253338,1.36854339,3108.4,3108.3,0.80421]
[1644929253539,0.00354535,3108.5,3108.3,0.80421]
[1644929253743,1.37130481,3108.6,3108.3,1.60832]
[1644929253939,1.37485016,3108.6,3108.3,1.60832]
[1644929254178,1.37485016,3108.6,3108.4,0.80412]
[1644929254338,1.36854339,3108.5,3108.4,0.80412]
[1644929254737,1.36854339,3108.5,3108.2,1.60821]
[1644929254941,0.00354535,3108.6,3108.1,0.80422]
[1644929254942,1.37208874,3108.4,3108.1,0.80422]
[1644929255143,0.00276142,3108.6,3108.1,1.6084]
[1644929255740,1.37131888,3108.6,3108.1,1.6084]
[1644929255987,0.00354535,3108.5,3108.2,0.80422]
[1644929256190,0.00354535,3108.5,3108.2,2.41261]
[1644929256191,1.37486423,3108.5,3108.2,2.41261]
[1644929256483,1.36855746,3108.4,3108.2,1.60839]
[1644929256611,0.00354535,3108.4,3108.2,1.60839]
[1644929256787,0.00276142,3108.5,3107.8,1.06649326]
[1644929256991,0.00276142,3108.5,3107.7,0.38819997]
[1644929256992,1.10435,3108.4,3107.5,0.80441]
[1644929257189,2.48390712,3108.1,3107.4,1.1461]
[1644929257393,1.36856692,3108.0,3107.4,1.1461]
[1644929257790,1.36856692,3107.9,3107.4,1.1461]
[1644929258004,3.50630677,3108.5,3107.2,2.7501]
[1644929258194,1.36874472,3108.4,3107.4,0.80441]
[1644929258588,0.01380505,3108.3,3107.4,1.60876]
[1644929258801,1.36874472,3108.2,3107.4,1.80439]
[1644929258994,1.36874472,3108.2,3107.4,0.80439]
[1644929259189,1.36874472,3108.2,3107.7,0.80431]
[1644929259856,1.36874472,3108.1,3107.3,4.38084]
[1644929260040,1.37150601,3108.3,3107.3,2.77235]
[1644929260243,1.36874472,3108.2,3107.3,2.77235]
[1644929260441,1.36874472,3108.2,3107.5,0.80436]
[1644929260896,1.36874472,3108.2,3107.3,1.1637]
[1644929261544,1.36874472,3108.2,3107.3,1.96811]
[1644929261742,1.36874472,3108.2,3107.3,2.77252]
[1644929262013,1.36874472,3108.2,3107.3,2.7724434]
[1644929262940,2.48390712,3107.6,3107.5,0.80428]
[1644929263339,0.3,3108.3,3107.5,0.80428]
[1644929263340,0.30276111,3108.3,3107.5,0.80428]
[1644929263599,1.36878261,3108.2,3107.5,0.80428]
[1644929263993,1.36878261,3108.1,3107.5,0.80428]
[1644929264395,1.36878261,3108.0,3107.5,0.80434]
[1644929264596,1.36878261,3107.9,3107.7,0.80434]
[1644929264793,0.0027612,3108.3,3107.7,0.80434]
[1644929264997,0.3,3108.2,3107.7,0.80434]
[1644929265294,2.17315728,3108.1,3107.4,1.60858]
[1644929265494,1.36878538,3108.0,3107.3,0.80441]
[1644929265903,1.36878538,3108.0,3107.2,1.60875]
[1644929266497,1.36878538,3108.0,3106.9,0.80453]
[1644929266498,2.48390712,3107.1,3106.9,0.80453]
[1644929266812,2.48390712,3107.1,3106.6,2.0462]
[1644929267007,2.48390712,3107.1,3106.5,1.29369997]
[1644929267234,2.48390712,3107.1,3106.6,1.0]
[1644929267435,2.48390712,3107.0,3106.7,1.609]
[1644929268236,2.48390712,3107.0,3106.5,1.59369997]
[1644929268237,2.48390712,3107.0,3106.5,1.29369997]
[1644929268436,2.48390712,3107.0,3106.5,0.13819997]
[1644929268636,2.48390712,3107.0,3106.5,1.74732997]
[1644929269637,2.48390712,3107.0,3106.6,0.80448]
[1644929269837,2.48390712,3107.0,3106.6,0.80455]
[1644929270253,2.78390712,3107.0,3106.6,0.80455]
[1644929270445,2.81774195,3107.0,3106.3,5.8355]
[1644929270639,2.81774195,3107.0,3106.3,2.7028]
[1644929270838,2.81774195,3107.0,3106.5,0.80466]
[1644929271495,3.35131418,3106.9,3106.3,2.7028]
[1644929271695,2.51774195,3107.0,3106.3,2.7028]
[1644929272107,2.51774195,3107.0,3106.5,0.80465]
[1644929274407,2.51774195,3107.0,3106.5,1.60926]
[1644929274605,2.51774195,3107.0,3106.6,1.60918]
[1644929274858,2.51774195,3107.0,3106.6,0.80458]
[1644929275058,2.51774195,3107.0,3106.3,1.60919]
[1644929275464,2.51774195,3107.0,3106.4,0.80466]
[1644929275859,2.81774195,3107.0,3106.4,0.80466]
[1644929276054,2.81774195,3107.0,3106.5,0.80466]
[1644929276654,2.81774195,3107.0,3106.6,0.80461]
[1644929276855,2.51774195,3107.0,3106.6,0.80461]
[1644929277054,2.51774195,3107.0,3106.6,1.60924]
[1644929277669,0.03383483,3107.0,3106.6,1.60924]
[1644929278489,0.03383483,3107.0,3106.6,0.80463]
[1644929279589,0.03383483,3107.0,3106.4,1.60917]
[1644929279999,0.03383483,3107.0,3106.5,0.80463]
[1644929280701,0.03638569,3107.3,3106.5,1.60929]
[1644929280892,3.50393684,3107.3,3106.5,1.60929]
[1644929281091,4.30859684,3107.3,3106.5,0.80466]
[1644929281294,5.10218191,3107.3,3106.3,1.60918]
[1644929281493,4.29752191,3107.3,3106.3,1.60918]
[1644929281798,3.49289281,3107.3,3106.3,2.41387]
[1644929281996,3.49289281,3107.3,3106.6,0.8046]
[1644929282243,0.02534166,3107.3,3106.6,0.8046]
[1644929282645,2.48390712,3106.9,3106.7,0.80459]
[1644929282852,2.48390712,3106.9,3106.8,3.97176424]
[1644929283044,2.48390712,3106.9,3106.8,4.27176424]
[1644929283244,2.48390712,3107.0,3106.8,5.07619424]
[1644929283446,2.48390712,3107.0,3106.8,2.90887]
[1644929283654,2.48390712,3107.0,3106.9,3.0501497]
[1644929283850,2.48390712,3107.0,3106.8,1.90887]
[1644929284045,2.48390712,3107.0,3106.8,2.90887]
[1644929285862,2.48390712,3107.0,3106.8,3.7133683]
[1644929286890,2.4828827,3107.0,3106.8,3.7133683]
[1644929287289,2.4828827,3107.0,3106.9,3.04227733]
[1644929287492,2.4828827,3107.0,3106.8,3.7133683]
[1644929290137,2.4828827,3107.0,3106.9,1.60882]
[1644929293341,2.4828827,3107.0,3106.9,4.67864269]
[1644929295295,2.4828827,3107.0,3106.9,5.97864269]
[1644929295514,2.51671753,3107.0,3106.9,5.97864269]
[1644929295799,2.51671753,3107.0,3106.9,6.14364269]
[1644929297245,2.51671753,3107.0,3106.9,5.14364269]
[1644929297450,2.51671753,3107.0,3106.9,6.14364269]
[1644929297648,0.03383483,3107.0,3106.9,6.14364269]
[1644929299042,0.03383483,3107.0,3106.9,3.07382]
[1644929299244,0.03383483,3107.0,3106.9,2.60882]
[1644929299650,0.01104403,3107.6,3106.9,2.60882]
[1644929299999,0.01104403,3107.6,3107.1,1.60904]
[1644929300148,0.01104403,3107.6,3107.1,0.80451]
[1644929300346,2.4828827,3107.7,3107.1,0.80451]
[1644929300750,2.4828827,3107.7,3107.1,2.41344]
[1644929300992,2.4828827,3107.7,3107.3,0.80446]
[1644929301993,2.4828827,3107.7,3107.4,0.80447]
[1644929302388,2.4828827,3107.7,3107.4,1.60895]
[1644929303238,2.4828827,3107.7,3107.4,0.80448]
[1644929303995,1.6090161,3108.1,3107.4,0.80448]
[1644929304193,1.36893592,3108.0,3107.4,1.60895]
[1644929304401,1.1785,3108.2,3107.4,1.60895]
[1644929304402,1.36893592,3107.9,3107.4,0.80448]
[1644929304601,1.36893592,3107.8,3107.4,0.80448]
[1644929304846,3.85181862,3107.7,3107.4,0.80448]
[1644929305046,1.36893592,3107.6,3107.4,3.90336386]
[1644929305246,2.4828827,3107.7,3107.5,5.10881]
[1644929305459,2.4828827,3107.7,3107.5,1.60881]
[1644929305647,0.01104403,3108.2,3107.5,1.60881]
[1644929305648,2.4828827,3107.8,3107.6,4.965]
[1644929305950,2.4828827,3107.8,3107.6,1.765]
[1644929306144,2.4828827,3107.8,3107.7,0.3]
[1644929306343,2.4828827,3107.8,3107.7,2.07329]
[1644929307949,2.4828827,3107.8,3107.7,2.37329]
[1644929308144,2.4828827,3107.8,3107.7,2.07329]
[1644929308345,2.4828827,3107.8,3107.7,2.37329]
[1644929310209,2.4328827,3107.8,3107.7,2.37329]
[1644929311010,2.4328827,3107.8,3107.7,2.07329]
[1644929311215,2.4328827,3107.8,3107.7,0.465]
[1644929311413,2.4328827,3107.8,3107.5,0.80418]
[1644929312755,2.4328827,3107.8,3107.6,1.60869]
[1644929314142,2.4328827,3107.8,3107.6,0.80436]
[1644929315344,2.4328827,3107.8,3107.6,3.67368]
[1644929316808,2.4328827,3107.8,3107.6,4.4777588]
[1644929322347,1.60440188,3107.8,3107.6,4.4777588]
[1644929322947,0.0138051,3108.3,3107.6,4.4777588]
[1644929322948,0.0138051,3108.3,3107.7,6.45]
[1644929323149,0.0138051,3108.3,3107.9,1.60789]
[1644929323354,0.00354535,3109.1,3108.0,0.465]
[1644929323594,0.00276133,3108.3,3108.1,3.34176389]
[1644929323796,0.00276133,3108.3,3108.2,1.465]
[1644929323997,0.00276133,3108.3,3108.2,4.92052731]
[1644929324202,0.00276133,3108.3,3108.2,7.33249731]
[1644929324594,0.00354535,3109.1,3108.3,0.80402]
[1644929324796,0.01104403,3108.9,3108.4,3.87219971]
[1644929325297,0.01104403,3108.9,3108.5,1.60804]
[1644929325498,0.01104403,3108.9,3108.6,3.37492826]
[1644929325807,0.00354535,3109.1,3108.6,3.37492826]
[1644929325996,0.00276142,3108.9,3108.6,3.37492826]
[1644929326398,0.00276142,3108.9,3108.7,1.6079]
[1644929326597,0.00276142,3108.9,3108.8,3.11481399]
[1644929326800,0.00276142,3108.9,3108.7,1.6079]
[1644929329466,0.0085426,3109.2,3109.1,3.411]
[1644929329660,0.01129712,3109.2,3109.1,4.176]
[1644929330461,0.0085426,3109.2,3109.1,4.176]
[1644929331306,0.0085426,3109.2,3109.1,7.35894117]
[1644929332810,0.0085426,3109.2,3109.1,3.876]
[1644929333011,0.0085426,3109.2,3108.8,0.80392]
[1644929333012,0.0085426,3109.2,3108.8,0.80412]
[1644929333211,0.0085426,3109.2,3108.6,0.80407]
[1644929333212,0.0085426,3109.2,3108.6,3.5]
[1644929333412,0.0085426,3109.2,3108.5,1.60819]
[1644929333910,0.0085426,3109.2,3108.6,0.8040024]
[1644929334110,0.0085426,3109.2,3108.7,0.80394]
[1644929334510,0.00274761,3109.0,3108.7,0.80394]
[1644929334762,0.00274761,3109.0,3108.7,1.10394]
[1644929335260,0.0085426,3109.2,3108.8,0.80394]
[1644929335461,0.0085426,3109.2,3108.9,0.80393]
[1644929335661,0.00274761,3109.0,3108.9,0.80393]
[1644929336260,0.00274761,3109.0,3108.9,1.60789]
[1644929336460,0.0085426,3109.2,3108.9,2.41185]
[1644929336761,0.0085426,3109.2,3108.9,1.60789]
[1644929336961,0.00274761,3109.1,3108.9,1.60789]
[1644929337659,0.0085426,3109.2,3108.9,1.60789]
[1644929338060,0.01129021,3109.2,3108.9,1.60789]
[1644929338260,0.01129021,3109.2,3109.0,1.60789]
[1644929338905,0.0085426,3109.2,3109.0,1.60789]
[1644929340111,0.0085426,3109.2,3109.0,2.4118073]
[1644929340309,0.0085426,3109.2,3109.0,0.80396]
[1644929340910,0.0085426,3109.2,3109.0,1.60788]
[1644929341708,0.0085426,3109.2,3109.0,0.80396]
[1644929341907,0.0085426,3109.2,3109.0,1.60788]
[1644929342107,0.03619464,3109.7,3109.0,1.60788]
[1644929342357,4.29892003,3110.2,3109.2,0.80394]
[1644929342557,2.17225782,3110.1,3109.2,0.80394]
[1644929342761,1.36828782,3110.0,3109.2,0.80394]
[1644929343960,1.36828782,3110.0,3109.2,5.01153974]
[1644929344159,1.36828782,3110.0,3109.3,0.8037886]
[1644929344561,1.36828782,3110.0,3109.3,1.1037886]
[1644929344961,1.36828782,3110.0,3109.4,0.80376]
[1644929345159,1.36828782,3110.0,3109.5,0.80382]
[1644929345364,1.36828782,3110.0,3109.5,1.10382]
[1644929345559,1.36828782,3110.0,3109.6,0.80383]
[1644929345761,1.36828782,3110.0,3109.5,0.3]
[1644929346002,1.36828782,3110.0,3109.6,0.80383]
[1644929346406,0.00272096,3109.9,3109.6,0.80383]
[1644929346804,0.00272096,3109.9,3109.2,1.60785]
[1644929347004,0.00272096,3109.9,3109.3,0.80398]
[1644929347205,1.08910083,3109.8,3109.3,0.80398]
[1644929347404,0.04035806,3110.1,3109.4,0.80385]
[1644929347606,0.00272087,3109.9,3109.4,0.80385]
[1644929347805,0.00272087,3109.9,3109.4,2.41148]
[1644929348008,0.00272087,3109.9,3109.4,1.60763]
[1644929348205,0.00272087,3109.9,3109.6,0.80382]
[1644929348406,0.00272087,3109.9,3109.6,1.60761]
[1644929348606,1.36810856,3110.0,3109.7,0.80382]
[1644929348807,0.00272096,3109.9,3109.6,0.95211091]
[1644929349106,0.00272096,3109.9,3109.3,1.60777]
[1644929349405,0.00272096,3109.9,3109.4,0.80392]
[1644929349606,0.00272096,3109.9,3109.4,2.41167]
[1644929349872,1.36810856,3110.0,3109.4,1.6078]
[1644929350067,0.00272091,3109.9,3109.4,1.6077511]
[1644929350767,0.00272091,3109.9,3109.6,0.80385]
[1644929350966,1.36810856,3110.0,3109.6,1.6077]
[1644929351370,0.00272091,3109.9,3109.6,1.6077]
[1644929351968,0.00272091,3109.9,3109.6,0.80385]
[1644929352170,1.36810856,3110.0,3109.6,0.80385]
[1644929352568,0.00272096,3109.9,3109.6,0.80385]
[1644929353174,0.00272096,3109.9,3109.5,0.80388]
[1644929353372,1.36810856,3110.0,3109.6,0.80387]
[1644929353606,1.36810856,3110.0,3109.7,3.23432857]
[1644929353607,0.00272096,3109.9,3109.7,3.23432857]
[1644929353809,0.00272096,3109.9,3109.7,3.69932857]
[1644929354108,0.00272096,3109.9,3109.7,0.465]
[1644929354507,0.00272096,3109.9,3109.7,1.268727]